Cogmind - Beta 10.1 --- EXPLORER MODE // 2020.10.22 @ 10:56:50 Player: Veritas Result: Self-destructed Performance ------------- Evolutions (6) 3000 Regions Visited (13) 2600 Robots Destroyed (191) 955 Value Destroyed (9252) 9252 Prototype IDs (11) 220 Alien Tech Used (0) 0 Bonus (2954) 2954 TOTAL SCORE: 18981 Bonus ------- High Alert Combat Kills 621 Follower Combat Kills 939 Entered Garrisons 600 Used RIF Installer 1000 Friendly Fire -206 Cogmind --------- Core Integrity 830/1150 Matter 290/300 Energy 252/260 System Corruption 0% Temperature Cool (0) Movement Rolling (90) Location -4/Factory Parts ------- > --- POWER (2) -------- Micro Fission Core Light Quantum Reactor > --- PROPULSION (4) --- Centrium Wheel Centrium Wheel Centrium Wheel Centrium Wheel > --- UTILITY (11) ----- Advanced Heat Sink Advanced Visual Processing Unit Long-range Sensor Array Advanced Signal Interpreter Target Analyzer Improved Hacking Suite System Shield Relay Coupler [Grunt] (50) Relay Coupler [Sentry] (36) Improved System Restoration Module > --- WEAPON (3) ------- HERF Cannon Hypervelocity Coil Gun Improved Remote Datajack > --- INVENTORY (4) ---- Enhanced Fission Core Impulse Thruster Relay Coupler [Brawler] (39) Peak State ------------ > --- POWER ------------ Micro Fission Core Light Quantum Reactor > --- PROPULSION ------- Nuclear Pulse Array Nuclear Pulse Array > --- UTILITY ---------- Advanced Cryofiber Web Advanced Heat Sink Advanced Visual Processing Unit Long-range Sensor Array Advanced Signal Interpreter Target Analyzer Improved Hacking Suite System Shield Relay Coupler [Grunt] Relay Coupler [Sentry] Improved System Restoration Module > --- WEAPON ----------- Heavy Laser Hypervelocity Coil Gun Improved Remote Datajack > --- INVENTORY -------- Nuclear Pulse Array Impulse Thruster Relay Coupler [Brawler] [Rating: 104] Favorites ----------- Power Micro Fission Core Engine Improved Ion Engine Power Core Micro Fission Core Reactor Light Quantum Reactor Propulsion Advanced Treads Treads Advanced Treads Leg Aluminum Leg Wheel Centrium Wheel Hover Unit Combat Airjet Flight Unit Nuclear Pulse Array Utility Advanced Heat Sink Device Advanced Heat Sink Storage Medium Storage Unit Processor Target Analyzer Hackware Relay Coupler [Hunter] Protection Heavy Armor Plating Weapon Cooled Particle Cannon Energy Gun High-powered Electrolaser Energy Cannon Cooled Particle Cannon Ballistic Gun Autogun Ballistic Cannon Gauss Cannon Launcher Heavy Rocket Launcher Special Weapon Improved Remote Datajack Special Melee Weapon Datajack Build | -11 -10 -9 -8 -8 -8 -7 -7 -7 -7 -5 -4 -4 -4 ------- Run | Scr Mat Mat Mat Gar Mat Fac Sto Gar Rec Fac Fac Gar Fac Slots Evolved 13 | . 1 2 2 . . 2 . . . 4 2 . . Power 1 | . . . . . . . . . . 1 . . . Propulsion 2 | . 1 . . . . . . . . 1 . . . Utility 9 | . . 2 2 . . 2 . . . 1 2 . . Weapon 1 | . . . . . . . . . . 1 . . . Parts Attached 171 | 7 3 15 10 14 18 13 7 8 3 31 23 8 11 Power 18 | 1 . 3 . 1 4 . 1 . . 3 3 1 1 Engine 6 | 1 . 3 . . . . 1 . . 1 . . . Core 11 | . . . . 1 4 . . . . 2 3 1 . Reactor 1 | . . . . . . . . . . . . . 1 Propulsion 44 | 2 1 7 1 1 3 4 1 3 1 9 6 . 5 Treads 4 | . . 3 1 . . . . . . . . . . Leg 7 | 2 1 4 . . . . . . . . . . . Wheel 4 | . . . . . . . . . . . . . 4 Hover 21 | . . . . 1 3 4 1 3 1 8 . . . Flight 8 | . . . . . . . . . . 1 6 . 1 Utility 49 | 2 . 3 6 6 3 4 . 1 2 7 9 3 3 Device 27 | . . 2 3 2 . 3 . 1 1 5 8 1 1 Storage 4 | 1 . . 2 1 . . . . . . . . . Processor 7 | 1 . 1 . . 1 1 . . . 1 1 . 1 Hackware 10 | . . . . 3 2 . . . 1 1 . 2 1 Protection 1 | . . . 1 . . . . . . . . . . Artifact . | . . . . . . . . . . . . . . Weapon 60 | 2 2 2 3 6 8 5 5 4 . 12 5 4 2 Energy Gun 18 | . . 1 1 5 4 2 . . . 3 1 . 1 Energy Cannon 12 | . . . 1 . 2 1 2 2 . 1 2 . 1 Ballistic Gun 11 | 2 2 1 1 . . 1 . . . 3 . 1 . Ballistic Cannon 1 | . . . . . . . 1 . . . . . . Launcher 3 | . . . . 1 . . . . . 2 . . . Special Weapon 4 | . . . . . . . . . . 1 1 2 . Impact Weapon . | . . . . . . . . . . . . . . Slashing Weapon . | . . . . . . . . . . . . . . Piercing Weapon . | . . . . . . . . . . . . . . Special Melee Weapon 11 | . . . . . 2 1 2 2 . 2 1 1 . Unidentified Prototypes 3 | . . . . . . . 1 . . 2 . . . Parts Lost 18 | . . 1 . 4 3 . . 2 . . 5 1 2 Power 1 | . . . . . 1 . . . . . . . . Propulsion 4 | . . . . 1 1 . . 1 . . 1 . . Utility 8 | . . 1 . 1 . . . 1 . . 3 1 1 Weapon 5 | . . . . 2 1 . . . . . 1 . 1 Highest Loss Streak 3 | . . 1 . 2 3 . . 1 . . 2 1 1 Average Slot Usage (%) 91 | . 96 96 91 86 86 91 99 99 100 95 85 88 88 Engine 5 | . 12 10 8 7 . . 3 7 7 4 1 . . Core 3 | . . . . . 7 7 3 . . 4 8 10 7 Treads 7 | . . 15 25 18 . . . . . . . . . Leg 3 | . 34 14 . . . . . . . . . . . Hover 7 | . . . . 1 12 21 20 21 21 18 2 . . Flight 1 | . . . . . . . . . . . 8 10 6 Device 12 | . . 6 8 9 15 10 14 17 14 15 20 24 18 Storage 4 | . 12 10 8 10 . . . . . . . . . Processor 13 | . 12 20 16 13 8 9 14 9 7 9 10 15 15 Hackware 13 | . . . . 4 25 28 28 28 34 23 18 13 19 Protection 1 | . . . 7 2 . . . . . . . . . Energy Gun 4 | . . 1 2 11 10 1 . . . 2 4 5 2 Energy Cannon 3 | . . . 5 1 3 5 6 5 7 4 3 1 1 Ballistic Gun 6 | . 24 18 8 1 . 5 1 . . 1 4 4 5 Ballistic Cannon 1 | . . . . . . . 5 7 7 2 . . . Naked Turns . | . . . . . . . . . . . . . . Heaviest Build 51 | 16 19 22 47 50 17 20 29 30 30 51 47 37 48 Greatest Support 78 | 20 30 66 66 66 40 54 32 49 49 78 53 40 64 Greatest Overweight (x) 1 | 1 . . . 1 . . . . . 1 1 . . Average Overweight (x) . | . . . . . . . . . . . . . . Largest Inventory Capacity 16 | 8 8 8 10 16 4 4 4 4 4 4 4 4 4 Average Capacity 6 | 6 8 8 8 12 4 4 4 4 4 4 4 4 4 Most Carried 13 | 3 8 8 9 13 4 4 4 4 4 4 4 4 4 Average Carried 5 | 1 6 6 7 9 3 3 3 3 3 2 3 3 3 Final Capacity 10 | 8 8 8 10 4 4 4 4 4 4 4 4 4 4 Final Carried 9 | 3 8 5 9 2 2 4 4 2 4 4 4 4 3 Class Distribution -------------------- 74% | Hacker-Mutant 8% | Hacker-Skirmisher 7% | Hacker-Scout 5% | Scavenger-Mutant 3% | Commander-Mutant Dominant Class ---------------- Hacker-Mutant | -10/Materials Hacker-Mutant | -9/Materials Hacker-Mutant | -8/Materials Hacker-Mutant | -8/Garrison Hacker-Mutant | -8/Materials Hacker-Mutant | -7/Factory Commander-Mutant | -7/Storage Hacker-Mutant | -7/Garrison Hacker-Mutant | -7/Recycling Hacker-Mutant | -5/Factory Hacker-Mutant | -4/Factory Hacker-Scout | -4/Garrison Hacker-Scout | -4/Factory Resources | -11 -10 -9 -8 -8 -8 -7 -7 -7 -7 -5 -4 -4 -4 ----------- Run | Scr Mat Mat Mat Gar Mat Fac Sto Gar Rec Fac Fac Gar Fac Matter Collected 4147 | 168 309 655 324 265 155 111 303 126 92 684 385 320 250 Remotely . | . . . . . . . . . . . . . . Salvage Created 8659 | . 179 1082 1096 1333 833 91 541 67 15 957 1100 917 448 Parts 460 | . 21 65 56 61 47 13 28 3 7 46 46 44 23 Haulers Intercepted 2 | . . 1 1 . . . . . . . . . . Recyclers Shooed 3 | . . 1 . . . . . . . 1 1 . . Parts Field Recycled . | . . . . . . . . . . . . . . Retrieved Matter . | . . . . . . . . . . . . . . Parts Self-Destructed . | . . . . . . . . . . . . . . Prevented . | . . . . . . . . . . . . . . Kills | -11 -10 -9 -8 -8 -8 -7 -7 -7 -7 -5 -4 -4 -4 ------- Run | Scr Mat Mat Mat Gar Mat Fac Sto Gar Rec Fac Fac Gar Fac Combat Hostiles Destroyed 148 | . 3 20 16 28 21 1 9 2 5 13 14 11 5 Guns 97 | . 3 20 11 21 15 . 1 . . 3 7 11 5 Cannons 45 | . . . 5 4 6 1 8 2 5 7 7 . . AOE 5 | . . . . 3 . . . . . 2 . . . Classes Destroyed 16 | . 4 5 3 2 . 1 . . 1 . . . . Worker 7 | . . 1 2 . . . . . . 2 1 . 1 Builder 2 | . 1 . . . . . . . . 1 . . . Hauler 2 | . . 1 1 . . . . . . . . . . Recycler 6 | . . 2 2 . . . . . . 1 1 . . Operator 4 | . . . 1 . 1 1 . . . 1 . . . Drone 5 | . . . . . . . . . 5 . . . . Watcher 22 | . 3 4 2 1 4 1 1 . . 3 2 . 1 Swarmer 13 | . 1 6 . . 6 . . . . . . . . Grunt 70 | . 2 6 12 14 10 . 3 2 . 6 4 9 2 Brawler 6 | . . . 1 3 . . 1 . . 1 . . . Duelist 5 | . . 1 . 3 . . . . . . . 1 . Protector 1 | . . . . 1 . . . . . . . . . Sentry 31 | . . 7 2 6 4 . 5 . . 3 2 1 1 Demolisher 1 | . . . . 1 . . . . . . . . . Hunter 3 | . . . 1 . 1 . . . . . 1 . . Programmer 13 | . . . . . . 1 . . . 3 7 . 2 Best Kill Streak 7 | . 3 5 7 5 4 1 2 1 3 6 6 3 3 Combat Bots Only 5 | . 2 4 5 5 3 1 2 1 3 4 4 3 2 Max Kills in Single Turn 2 | . 2 1 2 2 1 1 1 1 1 2 1 2 2 Gunslinging 1 | . . . . . . . . . . . . 1 . Exploded 2 | . . . . 2 . . . . . 2 . . . Melee . | . . . . . . . . . . . . . . Uniques/NPCs Destroyed . | . . . . . . . . . . . . . . Combat | -11 -10 -9 -8 -8 -8 -7 -7 -7 -7 -5 -4 -4 -4 -------- Run | Scr Mat Mat Mat Gar Mat Fac Sto Gar Rec Fac Fac Gar Fac Damage Taken 5172 | . 43 433 390 957 461 110 164 372 . 470 803 426 543 Core 845 | . 25 62 50 94 76 23 25 94 . 76 167 69 84 Absorbed by Shields 251 | . . . . . . . . . . 236 . 15 . Core Remaining (%) 84 | 100 90 84 . . 60 . . . 79 92 . . . Volleys Fired 538 | . 19 66 62 74 64 3 33 17 9 60 60 39 32 Largest 3 | . 2 2 2 2 2 2 2 2 2 3 3 3 2 Hottest 181 | . 46 79 96 138 130 58 138 78 78 181 130 135 123 Shots Fired 1074 | . 38 132 124 143 117 6 63 31 11 128 155 75 51 Gun 722 | . 38 132 90 123 91 3 8 . . 27 109 66 35 Cannon 336 | . . . 34 15 26 3 55 31 11 95 46 4 16 Launcher 10 | . . . . 5 . . . . . 5 . . . Special 6 | . . . . . . . . . . 1 . 5 . Kinetic 460 | . 38 123 62 15 . 3 33 17 8 47 50 33 31 Thermal 582 | . . 9 62 123 117 3 30 14 3 75 105 37 4 Explosive 10 | . . . . 5 . . . . . 5 . . . Electromagnetic 16 | . . . . . . . . . . . . . 16 Robot Hit Streak 71 | . 7 18 71 49 29 3 13 10 8 48 66 40 13 Robot Miss Streak 4 | . 2 2 2 1 2 1 2 2 2 2 4 1 2 Penetration Max 1 | . . . 1 . . . 1 . . . . 1 1 Secondary Targets 9 | . . 1 2 3 . . . . . . . 3 . Max Gunslinging Chain 1 | . . 1 1 1 . . . . . . . 1 . Shots Hit Robots 884 | . 29 99 111 114 104 8 43 24 7 109 131 65 40 Core Hits 353 | . 11 40 48 61 40 3 16 7 5 40 38 27 17 Critical Hits 50 | . 1 1 1 . 1 . 5 1 . 6 8 14 12 Critical Kills 21 | . . . 1 . . . . . . 1 5 7 7 Critical Parts Destroyed 26 | . 1 1 . . 1 . 3 1 . 4 3 7 5 Melee Attacks 21 | . . . . . 3 5 3 1 . 4 4 1 . Impact . | . . . . . . . . . . . . . . Slashing . | . . . . . . . . . . . . . . Piercing . | . . . . . . . . . . . . . . Sneak Attacks 15 | . . . . . 2 4 2 . . 3 4 . . Combat Hostiles 7 | . . . . . . . 1 . . 2 4 . . Follow-up Attacks . | . . . . . . . . . . . . . . Damage Inflicted 18116 | . 302 1503 2083 2213 1851 110 1158 616 186 3352 3324 995 423 Guns 10549 | . 302 1503 1425 1680 1393 23 106 . . 643 2249 916 309 Cannons 6792 | . . . 657 302 458 87 1052 616 186 2193 1048 79 114 Explosions 774 | . . . . 231 . . . . . 516 27 . . Melee . | . . . . . . . . . . . . . . Ramming 1 | . . . 1 . . . . . . . . . . Kinetic 6170 | . 302 1417 1031 212 . 23 501 323 105 1008 782 226 240 Thermal 11057 | . . 86 1051 1770 1851 87 657 293 81 1828 2515 769 69 Explosive 747 | . . . . 231 . . . . . 516 . . . Electromagnetic 141 | . . . . . . . . . . . 27 . 114 Impact . | . . . . . . . . . . . . . . Slashing . | . . . . . . . . . . . . . . Piercing . | . . . . . . . . . . . . . . Highest Corruption 3 | . . . . . . . . 3 3 3 . . . Average Corruption 2 | . . . . . . . . 3 3 2 . . . Corruption Purged . | . . . . . . . . . . . . . . Effects 17 | . . . . . . . . 3 9 5 . . . Message Errors 2 | . . . . . . . . . 1 1 . . . Matter Fused 4 | . . . . . . . . 2 2 . . . . Heat Flow Errors 5 | . . . . . . . . 1 1 3 . . . Energy Discharges 2 | . . . . . . . . . 2 . . . . Data Loss (minor) 2 | . . . . . . . . . 1 1 . . . Targeting Errors 1 | . . . . . . . . . 1 . . . . Weapon Failures 1 | . . . . . . . . . 1 . . . . Overload Shots 3 | . . . . . . . 1 . . 2 . . . Overflow Damage 225 | . . . 10 . 3 . 29 18 . 104 61 . . Projectiles 207 | . . . 10 . 3 . 29 18 . 86 61 . . Explosions 18 | . . . . . . . . . . 18 . . . Melee . | . . . . . . . . . . . . . . Knockbacks 11 | . . . . . . . 2 3 . 6 . . . Impact . | . . . . . . . . . . . . . . Kinetic 9 | . . . . . . . 2 3 . 4 . . . Secondary 2 | . . . . . . . . . . 2 . . . Self-Inflicted Damage . | . . . . . . . . . . . . . . Shots . | . . . . . . . . . . . . . . Rammed 1 | . . . 1 . . . . . . . . . . Targets Rammed 1 | . . . 1 . . . . . . . . . . Kicked . | . . . . . . . . . . . . . . Crushed . | . . . . . . . . . . . . . . Highest Temperature 315 | . 12 63 234 276 107 2 73 215 107 315 . . 5 Average Temperature 49 | . 5 16 58 52 40 1 14 44 23 113 . . 3 Received Heat Transfer 2383 | . 30 231 324 594 297 54 69 282 . 124 75 228 75 Effects 4 | . . . 1 . . . . . . 3 . . . Interference 4 | . . . 1 . . . . . . 3 . . . Siege Activations . | . . . . . . . . . . . . . . Robots Corrupted . | . . . . . . . . . . . . . . Combat Hostiles . | . . . . . . . . . . . . . . Parts Fried . | . . . . . . . . . . . . . . Impact Corruptions . | . . . . . . . . . . . . . . Robots Melted 1 | . . . . . . . . . . 1 . . . Combat Hostiles 1 | . . . . . . . . . . 1 . . . Parts Melted 34 | . . . . 5 8 . 4 1 . 7 5 4 . Heat Transferred 17942 | . . 222 2183 3346 3774 111 864 407 111 2375 3330 1108 111 Parts Sabotaged . | . . . . . . . . . . . . . . Parts Stolen . | . . . . . . . . . . . . . . Parts Stripped . | . . . . . . . . . . . . . . Power Chain Reactions . | . . . . . . . . . . . . . . Missiles Intercepted . | . . . . . . . . . . . . . . Alert | -11 -10 -9 -8 -8 -8 -7 -7 -7 -7 -5 -4 -4 -4 ------- Run | Scr Mat Mat Mat Gar Mat Fac Sto Gar Rec Fac Fac Gar Fac Peak Influence 902 | . 140 284 311 902 636 275 510 402 259 758 235 351 423 Initial 527 | . . 42 85 55 322 191 33 211 120 527 69 29 136 Average 275 | . 68 127 129 520 481 181 254 336 189 515 75 191 214 Maximum Alert Level 3 | . . 1 1 3 2 1 2 2 1 3 1 1 2 Low Security (%) 46 | 100 100 75 71 18 . 36 40 1 44 1 95 55 76 Level 1 27 | . . 24 28 19 32 63 40 97 55 20 4 44 7 Level 2 20 | . . . . 30 67 . 19 . . 75 . . 16 Level 3 4 | . . . . 31 . . . . . 2 . . . Level 4 . | . . . . . . . . . . . . . . Level 5 . | . . . . . . . . . . . . . . High Security . | . . . . . . . . . . . . . . Max Security . | . . . . . . . . . . . . . . Squads Dispatched 27 | . . 2 3 . 4 2 3 . . 4 4 . 5 Investigation 3 | . . . . . . 1 . . . . 1 . 1 Extermination 10 | . . . . . . 1 1 . . 3 3 . 2 Reinforcement 9 | . . 2 2 . 4 . . . . 1 . . . Assault 1 | . . . . . . . . . . . . . 1 Garrison 4 | . . . 1 . . . 2 . . . . . 1 Intercept . | . . . . . . . . . . . . . . Construction Impeded 1 | . . . . . . . . . . 1 . . . Haulers Reinforced . | . . . . . . . . . . . . . . Stealth | -11 -10 -9 -8 -8 -8 -7 -7 -7 -7 -5 -4 -4 -4 --------- Run | Scr Mat Mat Mat Gar Mat Fac Sto Gar Rec Fac Fac Gar Fac Distress Signals 9 | . 1 . 2 . 5 . . . . . 1 . . Communications Jammed 4 | . . . . . . . . . 3 1 . . . Distress Signals . | . . . . . . . . . . . . . . Times Spotted 257 | . 7 33 27 28 37 9 21 15 8 21 20 19 12 Peak Tracking Total 6 | . 3 3 6 5 6 3 3 6 2 5 5 4 6 Tactical Retreats 11 | . 1 1 1 1 2 1 . 1 . 1 . 2 . Traps | -11 -10 -9 -8 -8 -8 -7 -7 -7 -7 -5 -4 -4 -4 ------- Run | Scr Mat Mat Mat Gar Mat Fac Sto Gar Rec Fac Fac Gar Fac Traps Triggered 14 | . . . 1 6 . . . 1 . 2 . 2 2 Indirectly . | . . . . . . . . . . . . . . Trap Hack Attempts 8 | . . . . . . . . 8 . . . . . Triggered . | . . . . . . . . . . . . . . Disarmed . | . . . . . . . . . . . . . . Reprogrammed 12 | . 5 . . . . . 6 1 . . . . . Reused 1 | . . . . . . . 1 . . . . . . Traps Extracted . | . . . . . . . . . . . . . . Installed . | . . . . . . . . . . . . . . Triggered 1 | . . . . . . . 1 . . . . . . Machines | -11 -10 -9 -8 -8 -8 -7 -7 -7 -7 -5 -4 -4 -4 ---------- Run | Scr Mat Mat Mat Gar Mat Fac Sto Gar Rec Fac Fac Gar Fac Machines Disabled 22 | . 1 . 3 4 2 . 6 1 . . 2 2 1 Max in Single Turn 1 | . 1 . 1 1 1 . 1 1 . . 1 1 1 Garrison Access 1 | . . . . . . . . . . . . . 1 Garrison Relay 7 | . . . . 4 . . . 1 . . . 2 . Machines Sabotaged . | . . . . . . . . . . . . . . Garrisons Compromised . | . . . . . . . . . . . . . . Overloaded Fab Kills . | . . . . . . . . . . . . . . Fab Network Shutdowns . | . . . . . . . . . . . . . . Hacking | -11 -10 -9 -8 -8 -8 -7 -7 -7 -7 -5 -4 -4 -4 --------- Run | Scr Mat Mat Mat Gar Mat Fac Sto Gar Rec Fac Fac Gar Fac Machines Accessed 53 | . 2 7 4 . 4 4 10 . 3 10 7 . 2 Terminals 37 | . 2 5 2 . 3 3 8 . 3 6 4 . 1 Fabricators 1 | . . . . . . 1 . . . . . . . Repair Stations 7 | . . . . . . . 1 . . 3 2 . 1 Recycling Units . | . . . . . . . . . . . . . . Scanalyzers 5 | . . 2 1 . 1 . . . . 1 . . . Garrison Access 3 | . . . 1 . . . 1 . . . 1 . . Total Hacks 139 | . 4 16 9 . 8 9 32 . 7 23 24 . 7 Successful 106 | . 3 15 7 . 6 6 25 . 6 14 20 . 4 Failed 33 | . 1 1 2 . 2 3 7 . 1 9 4 . 3 Catastrophic 4 | . . . 2 . . . 1 . . . 1 . . Database Lockouts . | . . . . . . . . . . . . . . Manual 28 | . 1 2 3 . 1 1 14 . 1 1 1 . 3 Terminals 93 | . 4 10 6 . 6 4 27 . 7 12 12 . 5 Fabricators 5 | . . . . . . 5 . . . . . . . Repair Stations 24 | . . . . . . . 2 . . 9 11 . 2 Recycling Units . | . . . . . . . . . . . . . . Scanalyzers 12 | . . 6 2 . 2 . . . . 2 . . . Garrison Access 5 | . . . 1 . . . 3 . . . 1 . . Terminal Hacks 67 | . 3 9 4 . 4 2 21 . 6 7 9 . 2 Record 12 | . . . 1 . . . 6 . . 1 4 . . Part Schematic 3 | . . . . . . 1 . . 2 . . . . Robot Schematic 1 | . . . . . . . 1 . . . . . . Robot Analysis 1 | . . . 1 . . . . . . . . . . Prototype ID Bank 2 | . . 1 . . . . 1 . . . . . . Open Door 4 | . . . . . . . 3 . . . 1 . . Level Access Points 1 | . . . . . . . . . 1 . . . . Machine Index 1 | . . . . . . . . . 1 . . . . Repair Station Index 1 | . . . . . . . . . . 1 . . . Alert Level 3 | . . . . . . . 1 . . 1 1 . . Unreport Threat 5 | . . 1 . . 1 . 1 . . 2 . . . Locate Traps 6 | . 1 3 . . 1 . 1 . . . . . . Reprogram Traps 3 | . 1 . . . . . 2 . . . . . . Security Status 1 | . . . . . . . . . . 1 . . . Investigation Status 1 | . . 1 . . . . . . . . . . . Garrison Status 1 | . . . 1 . . . . . . . . . . Recall Investigation 1 | . . . . . . . . . . . . . 1 Hauler Manifests 1 | . . . . . . . . . 1 . . . . Registered Components 4 | . . 1 . . 1 . 1 . . . 1 . . Registered Prototypes 2 | . . . . . . 1 1 . . . . . . Zone Layout 13 | . 1 2 1 . 1 . 3 . 1 1 2 . 1 Fabricator Hacks 3 | . . . . . . 3 . . . . . . . Load Schematic 1 | . . . . . . 1 . . . . . . . Build 2 | . . . . . . 2 . . . . . . . Repair Station Hacks 20 | . . . . . . . 2 . . 6 10 . 2 Scan Component 10 | . . . . . . . 1 . . 3 5 . 1 Repair 10 | . . . . . . . 1 . . 3 5 . 1 Recycling Unit Hacks . | . . . . . . . . . . . . . . Scanalyzer 11 | . . 6 2 . 2 . . . . 1 . . . Insert Component 6 | . . 3 1 . 1 . . . . 1 . . . Analyze 5 | . . 3 1 . 1 . . . . . . . . Garrison Access Hacks 3 | . . . 1 . . . 1 . . . 1 . . Unlock Access 3 | . . . 1 . . . 1 . . . 1 . . Unauthorized Hacks 2 | . . . . . . 1 1 . . . . . . Terminals 1 | . . . . . . 1 . . . . . . . Operators 1 | . . . . . . 1 . . . . . . . Fabricators . | . . . . . . . . . . . . . . Repair Stations . | . . . . . . . . . . . . . . Recycling Units . | . . . . . . . . . . . . . . Scanalyzers . | . . . . . . . . . . . . . . Garrison Access 1 | . . . . . . . 1 . . . . . . Watchers 1 | . . . . . . . 1 . . . . . . Data Cores Recovered 3 | . . . 1 . . 1 . . . 1 . . . Used 2 | . . . . . . 1 . . . 1 . . . Hacking Detections 43 | . 1 5 4 . 3 3 8 . 1 10 6 . 2 Full Trace Events 2 | . . . . . . 1 . . . . 1 . . Feedback Events . | . . . . . . . . . . . . . . Feedback Blocked . | . . . . . . . . . . . . . . Robot Schematics Acquired 1 | . . . . . . . 1 . . . . . . Robots Built . | . . . . . . . . . . . . . . Matter . | . . . . . . . . . . . . . . Time . | . . . . . . . . . . . . . . Total Robot Build Rating . | . . . . . . . . . . . . . . Part Schematics Acquired 8 | . . 3 1 . 1 1 . . 2 . . . . Parts Built 3 | . . . . . . 3 . . . . . . . Matter 446 | . . . . . . 446 . . . . . . . Time 223 | . . . . . . 223 . . . . . . . Total Part Build Rating 19 | . . . . . . 19 . . . . . . . Parts Repaired 10 | . . . . . . . 1 . . 3 5 . 1 Time 498 | . . . . . . . 28 . . 136 290 . 44 Parts Recycled . | . . . . . . . . . . . . . . Recycled Matter . | . . . . . . . . . . . . . . Retrieved Matter . | . . . . . . . . . . . . . . Retrieved Components . | . . . . . . . . . . . . . . Parts Scanalyzed 6 | . . 3 1 . 1 . . . . 1 . . . Part Schematics Acquired 5 | . . 3 1 . 1 . . . . . . . . Parts Damaged . | . . . . . . . . . . . . . . Bothacking | -11 -10 -9 -8 -8 -8 -7 -7 -7 -7 -5 -4 -4 -4 ------------ Run | Scr Mat Mat Mat Gar Mat Fac Sto Gar Rec Fac Fac Gar Fac Used RIF Installer 2 | . . . . 1 . . . . . . . 1 . Program Shield 1 | . . . . . . . . . . . . 1 . Robots Hacked 14 | . . . . . 2 2 1 1 . 3 . 5 . Non-combat 3 | . . . . . 1 1 . . . 1 . . . Combat 11 | . . . . . 1 1 1 1 . 2 . 5 . Robot Hacks Applied 18 | . . . . . 2 5 1 1 . 3 . 6 . parse_system 3 | . . . . . 1 1 . . . 1 . . . no_distress 1 | . . . . . . . . . . 1 . . . find_fabricator 1 | . . . . . . 1 . . . . . . . drop_inventory 2 | . . . . . 1 1 . . . . . . . locate_stockpiles 1 | . . . . . . 1 . . . . . . . link_complan 1 | . . . . . . . . . . . . 1 . spike_heat 1 | . . . . . . . . . . . . 1 . disable_weapons 1 | . . . . . . . 1 . . . . . . go_dormant 1 | . . . . . . . . . . . . 1 . formatsys_high 6 | . . . . . . 1 . 1 . 1 . 3 . Relay Couplers Released 29 | . . . . 16 . . . 3 . . . 9 1 Machine Destruction 29 | . . . . 16 . . . 3 . . . 9 1 Attached 6 | . . . . 2 1 . . . . . . 2 1 Robots Rewired 5 | . . . . 3 . . 1 . . 1 . . . Allies Hacked . | . . . . . . . . . . . . . . Hacks Repelled . | . . . . . . . . . . . . . . Allies | -11 -10 -9 -8 -8 -8 -7 -7 -7 -7 -5 -4 -4 -4 -------- Run | Scr Mat Mat Mat Gar Mat Fac Sto Gar Rec Fac Fac Gar Fac Total Allies 21 | . . . . 3 . 1 11 1 . 2 . 3 . Largest Group 11 | . . . . 3 . 1 11 8 . 2 . 3 . Highest-Rated Group 272 | . . . . 42 . 32 272 223 . 109 . 136 . Highest-Rated Ally 99 | . . . . 16 . 32 99 99 . 60 . 47 . Total Orders 4 | . . . . . . . 3 . . 1 . . . STAY 1 | . . . . . . . 1 . . . . . . FOLLOW 1 | . . . . . . . 1 . . . . . . GUARD 1 | . . . . . . . 1 . . . . . . AID 1 | . . . . . . . . . . 1 . . . Ally Attacks 182 | . . . . 17 . 9 88 58 . 1 . 9 . Total Damage 3364 | . . . . 218 . 290 1728 823 . 46 . 259 . Kills 30 | . . . . 1 . 3 14 10 . 1 . 1 . Allies Corrupted 2 | . . . . . . . . . . 1 . 1 . Allies Melted . | . . . . . . . . . . . . . . Intel | -11 -10 -9 -8 -8 -8 -7 -7 -7 -7 -5 -4 -4 -4 ------- Run | Scr Mat Mat Mat Gar Mat Fac Sto Gar Rec Fac Fac Gar Fac Robot Analysis Total 1 | . . . 1 . . . . . . . . . . Derelict Logs Recovered . | . . . . . . . . . . . . . . Drone Launches . | . . . . . . . . . . . . . . Drone Recoveries . | . . . . . . . . . . . . . . Exploration | -11 -10 -9 -8 -8 -8 -7 -7 -7 -7 -5 -4 -4 -4 ------------- Run | Scr Mat Mat Mat Gar Mat Fac Sto Gar Rec Fac Fac Gar Fac Turns Passed 9144 | 71 325 1196 1164 1320 791 593 515 244 227 1061 948 349 340 Spaces Moved 7351 | 54 210 716 619 775 747 504 521 240 249 1008 848 457 403 Core 12 | 12 . . . . . . . . . . . . . Treads 1516 | . . 332 619 565 . . . . . . . . . Legs 636 | 42 210 384 . . . . . . . . . . . Wheels 66 | . . . . . . . . . . . . . 66 Hover 3690 | . . . . 210 747 504 521 240 249 1008 211 . . Flight 1431 | . . . . . . . . . . . 637 457 337 Fastest Speed 37 | 50 120 120 145 80 58 56 56 56 58 48 37 37 37 Average Speed 80 | 108 120 131 145 131 71 57 56 56 58 58 44 37 45 Slowest Speed 165 | 120 120 145 145 165 80 58 56 58 58 111 120 37 90 Overloaded Moves . | . . . . . . . . . . . . . . Propulsion Burnouts . | . . . . . . . . . . . . . . Robots Hopped 1 | . . . . . . . . . . . . 1 . Cave-ins Triggered . | . . . . . . . . . . . . . . Exploration Rate (%) 43 | 5 44 63 44 83 65 11 75 41 58 24 19 64 10 Regions Visited 13 Branch Regions 2 Pre-discovered Areas . | . . . . . . . . . . . . . . Known Exits Taken 10 | 1 1 1 1 . 1 1 1 . 1 1 1 . . Unknown Exits Taken . | . . . . . . . . . . . . . . Scrap Searched . | . . . . . . . . . . . . . . Spaces Dug . | . . . . . . . . . . . . . . Terrain Destroyed 150 | . . . . 90 2 . 11 . 6 37 4 . . Melee . | . . . . . . . . . . . . . . Projectile 32 | . . . . . 2 . 11 . 6 9 4 . . AOE 118 | . . . . 90 . . . . . 28 . . . Terrain Rammed . | . . . . . . . . . . . . . . Walls Destroyed . | . . . . . . . . . . . . . . Machines Disabled . | . . . . . . . . . . . . . . Actions | -11 -10 -9 -8 -8 -8 -7 -7 -7 -7 -5 -4 -4 -4 --------- Run | Scr Mat Mat Mat Gar Mat Fac Sto Gar Rec Fac Fac Gar Fac Total 9570 | 63 251 861 764 936 876 793 676 312 318 1356 1292 565 507 Wait 1222 | . 7 49 53 6 31 261 103 27 56 212 338 30 49 Move 7337 | 53 209 715 619 774 746 503 520 238 248 1007 848 454 403 Hop 1 | . . . . . . . . . . . . 1 . Pick Up 64 | 3 8 3 8 6 4 . 4 . 1 13 5 3 6 Fast Attach 78 | 7 3 6 3 6 9 7 2 . 1 13 14 2 5 Attach 30 | . . 2 3 6 . . . 2 . 6 6 . 5 Detach 10 | . . . 2 1 1 1 . . 1 . 4 . . Swap 63 | . . 7 4 2 9 6 5 6 2 12 3 6 1 Drop 107 | . 5 13 9 17 9 7 5 . . 21 10 5 6 Fire 538 | . 19 66 62 74 64 3 33 17 9 60 60 39 32 Melee 21 | . . . . . 3 5 3 1 . 4 4 1 . Ram . | . . . . . . . . . . . . . . Kick . | . . . . . . . . . . . . . . Crush 1 | . . . 1 . . . . . . . . . . Escape Stasis 60 | . . . . 16 . . . 13 . 7 . 24 . Rewire 30 | . . . . 28 . . 1 . . 1 . . . Trap 8 | . . . . . . . . 8 . . . . . Miscellaneous . | . . . . . . . . . . . . . . Route ------- -11/Scrapyard -10/Materials (discovered 3 exits: *Mat / *Min x2) -9/Materials (discovered 4 exits: *Mat x3 / *Min) -8/Materials (discovered 2 exits: *Fac / Gar) -8/Garrison (discovered 3 exits: *Mat x3) -8/Materials (discovered 2 exits: *Fac x2) -7/Factory -7/Storage (discovered 2 exits: *Fac / Gar) -7/Garrison -7/Recycling -5/Factory (discovered 2 exits: *Fac x2) -4/Factory (discovered 3 exits: *Upp / *Ext / Gar) -4/Garrison (discovered 2 exits: *Fac x2) -4/Factory History --------- Turn | Location | Event 19 | -11/Scrapyard | Identified exit to Materials 19 | -11/Scrapyard | Discovered exit to Materials (range 15) 72 | -11/Scrapyard | Entered Materials 72 | -10/Materials | Evolved 1 slot: Propulsion x1 172 | -10/Materials | Identified exit to Mines 172 | -10/Materials | Discovered exit to Mines (range 13) 223 | -10/Materials | Discovered exit to Mines (range 19) 313 | -10/Materials | Build established: Hacker-Mutant 360 | -10/Materials | Identified exit to Materials 360 | -10/Materials | Discovered exit to Materials (range 16) 397 | -10/Materials | Entered another Materials area 397 | -9/Materials | Evolved 2 slots: Utility x2 606 | -9/Materials | Identified exit to Materials 606 | -9/Materials | Discovered exit to Materials (range 4) 745 | -9/Materials | Identified exit to Mines 745 | -9/Materials | Discovered exit to Mines (range 17) 1406 | -9/Materials | Discovered exit to Materials (range 16) 1513 | -9/Materials | Discovered exit to Materials (range 10) 1593 | -9/Materials | Entered another Materials area 1593 | -8/Materials | Evolved 2 slots: Utility x2 2148 | -8/Materials | Identified exit to Factory 2148 | -8/Materials | Discovered exit to Factory (range 14) 2686 | -8/Materials | Garrison activated, responded to threat 2757 | -8/Materials | Identified exit to Garrison 2757 | -8/Materials | Entered Garrison 2808 | -8/Garrison | Triggered checkpoint 2906 | -8/Garrison | Triggered checkpoint 3056 | -8/Garrison | Identified exit to Materials 3056 | -8/Garrison | Discovered exit to Materials (range 14) 3087 | -8/Garrison | Installed Relay Interface Framework 3136 | -8/Garrison | Triggered checkpoint 3179 | -8/Garrison | Garrison Relay disabled 3274 | -8/Garrison | Triggered checkpoint 3400 | -8/Garrison | Discovered exit to Materials (range 9) 3438 | -8/Garrison | Triggered checkpoint 3453 | -8/Garrison | Garrison Relay disabled 3516 | -8/Garrison | Triggered checkpoint 3662 | -8/Garrison | Triggered checkpoint 3721 | -8/Garrison | Discovered exit to Materials (range 10) 3782 | -8/Garrison | Triggered checkpoint 3838 | -8/Garrison | Garrison Relay disabled 3990 | -8/Garrison | Garrison Relay disabled 4077 | -8/Garrison | Entered Materials 4355 | -8/Materials | Lost 3 parts (1p1n1w) 4480 | -8/Materials | Discovered exit to Factory (range 12) 4729 | -8/Materials | Discovered exit to Factory (range 15) 4868 | -8/Materials | Entered Factory 4868 | -7/Factory | Evolved 2 slots: Utility x2 5154 | -7/Factory | Fabricated Adv. Transmission Jammer (x1) 5262 | -7/Factory | Fabricated Antigrav System (x2) 5443 | -7/Factory | Identified exit to Storage 5443 | -7/Factory | Discovered exit to Storage (range 5) 5461 | -7/Factory | Entered Storage 5571 | -7/Storage | Met 01-MTF 5631 | -7/Storage | Assisted by bots powering up and referring to "LRC-V3" 5700 | -7/Storage | Identified exit to Factory 5700 | -7/Storage | Discovered exit to Factory (range 16) 5804 | -7/Storage | Garrison activated, responded to threat 5911 | -7/Storage | Repaired Antigrav System 5932 | -7/Storage | Build established: Commander-Mutant 5959 | -7/Storage | Identified exit to Garrison 5976 | -7/Storage | Entered Garrison 5976 | -7/Garrison | Accompanied by 8 allies (01-MTF) 5981 | -7/Garrison | 01-MTF left 6000 | -7/Garrison | Triggered checkpoint 6017 | -7/Garrison | Garrison Relay disabled 6071 | -7/Garrison | Triggered checkpoint 6092 | -7/Garrison | Triggered checkpoint 6202 | -7/Garrison | Identified exit to Recycling 6202 | -7/Garrison | Discovered exit to Recycling (range 8) 6220 | -7/Garrison | Entered Recycling 6237 | -7/Recycling | Spotter reported a threat 6291 | -7/Recycling | Build established: Hacker-Mutant 6320 | -7/Recycling | Spotter reported a threat 6411 | -7/Recycling | Identified exit to Factory 6436 | -7/Recycling | Spotter reported a threat 6447 | -7/Recycling | Entered Factory 6447 | -5/Factory | Evolved 4 slots: Power x1, Propulsion x1, Utility x1, Weapon x1 6631 | -5/Factory | Repaired Cld. Particle Cannon 6658 | -5/Factory | Repaired Datajack 6759 | -5/Factory | P-70 Sage assimilated allied Sentinel 6a 7231 | -5/Factory | Repaired F-cell Engine 7342 | -5/Factory | Identified exit to Factory 7342 | -5/Factory | Discovered exit to Factory (range 16) 7456 | -5/Factory | Build established: Hacker-Skirmisher 7504 | -5/Factory | Discovered exit to Factory (range 7) 7508 | -5/Factory | Entered another Factory area 7508 | -4/Factory | Evolved 2 slots: Utility x2 7938 | -4/Factory | Repaired Nuclear Pulse Array 8009 | -4/Factory | Repaired Cld. Particle Cannon 8061 | -4/Factory | Repaired Cloaking Device 8109 | -4/Factory | Repaired Lrn. Sensor Array 8230 | -4/Factory | Repaired Hpw. Electrolaser 8405 | -4/Factory | Identified exit to Extension 8405 | -4/Factory | Discovered exit to Extension (range 5) 8453 | -4/Factory | Identified exit to Upper Caves 8453 | -4/Factory | Discovered exit to Upper Caves (range 12) 8456 | -4/Factory | Identified exit to Garrison 8456 | -4/Factory | Entered Garrison 8478 | -4/Garrison | Triggered checkpoint 8520 | -4/Garrison | Garrison Relay disabled 8582 | -4/Garrison | Triggered checkpoint 8587 | -4/Garrison | Build established: Hacker-Scout 8622 | -4/Garrison | Triggered checkpoint 8688 | -4/Garrison | Triggered checkpoint 8705 | -4/Garrison | Garrison Relay disabled 8761 | -4/Garrison | Identified exit to Factory 8761 | -4/Garrison | Discovered exit to Factory (range 12) 8796 | -4/Garrison | Discovered exit to Factory (range 17) 8804 | -4/Garrison | Expanded RIF knowledge: Program Shield 8805 | -4/Garrison | Entered Factory 8865 | -4/Factory | Repaired Lrn. Sensor Array 8887 | -4/Factory | Spotted B-86 Titan 9145 | -4/Factory | Self-destructed Last Messages --------------- 09097_ P-70 Sage destroyed. 09097_ HV Slug penetrates Garrison Access. 09099_ K-01 Serf collects debris. 09100_ Acquired 87 matter. 09100_ U-05 Engineer builds a Wall. 09102_ K-01 Serf collects debris. 09102_ Acquired Prototype Power Core. 09104_ K-01 Serf collects debris. 09104_ Acquired 28 matter. 09108_ K-01 Serf collects debris. 09122_ C-30 ARC bursts open, deploying its payload. 09122_ G-73 Enforcer unfolds itself. 09122_ G-67 Veteran unfolds itself. 09122_ L-61 Swordsman unfolds itself. 09122_ G-67 Veteran unfolds itself. 09122_ I-47 Archangel unfolds itself. 09130_ ALERT: Rogue bot located, Programmers report to Factory Zone 6I. 09137_ HV Slug penetrates Wall. 09142_ HV Slug penetrates L-61 Swordsman. [Achievement: Achiever] Map ----- +----------------------------------------------------+ | ?????????????????????????????????????????????????? | | ?????????????????????????????????????????????????? | | ?????????????????????????????????????????????????? | | ?????????????????????????????????????????????????? | | ?????????????????????????????????????????????????? | | ?????????????????????????????????????????????????? | | ?????????????????????????????????????????????????? | | ?????????????????????????????????????????????????? | | ?????????????????????????????????????????????????? | | ?????????????????????????????????????????????????? | | ?????????????????????????????????????????????????? | | ?????????????????????????????????????????????????? | | ????????????Y????????????????????????????????????? | | ???????????????########??????????????????????????? | | ???????????????# #??#?????????k?????????????? | | ???????????????# = #?k##??????????????????????? | | ???????????????# # #####??????????????????? | | ???????????????# u/% #??????????????????? | | ???????????????# = # ###u# """k""" Y#????? | | ???????????????# #? #??# # ##????? | | ??????????########/##### #??# # u #?????? | | ??????????# / #??# #######+############ | | ??????????# #k########## #???# + | | ??????????# """#="%G""=!!# ##### # != """ | | ??????????# ""?#%" !="g= ## ## # !== """ | | ??????????# ""?#!%=[igl@*## ##### + ! = """ | | ??????????# ??#*| *g!![ ## !=* ^ k # = | | ??????????#####??############ !%%! # """ | | ??????????????????# # %""""" ########## | | ??????????????????# # = """"" #??####### | | ??????????????????# # "" F" #??# | | ??????????????????# # #??#"" | | ??????????????????# + t #??#"" | | ??????????????????# # #??#"T " | | ??????????????????# # ########??#"" " | | ??????????????????# # [!%#?????????#"" " | | ??????????????????# # =%[#?????????# | | ??????????????????########## %*h#?????????# " | | ???????????????????????????# h#?????????# " | | ??????????????###########??# #?????????# " | | ??????????????# ""??# #?????????# | | ??????????????# ""R"?# #?????????# | | | ??????????????# ! "" "?# A############+#### | | ??????????????# # g | | ??????????????# # | | ??????????????# + | | ??????????????# """ """ # | | ????????????????? """ """ # | | ???????????????????""" """?# ############+#### | | ??????????????????? ?# #?????# | +----------------------------------------------------+ Best States ------------- Heat Dissipation 81 Energy Generation 38 Energy Capacity 715 Matter Stores 400 Matter Capacity 400 Sight Range 20 Robot Scan Range 20 Terrain Scan Density 10 Jamming Range 16 Cloak Strength 2 Base Temperature (-) 200 Armor Coverage 600 Resistance: KI 35 Resistance: TH 35 Resistance: EX 35 Resistance: EM 35 Resistance: I 35 Resistance: S 35 Resistance: P 35 Evasion (%) 62 Targeting Accuracy 5 Target Analysis 5 Recoil Reduction 3 Offensive Hacking 32 Defensive Hacking 10 Relay Coupler Types 96 Relay Coupler Value 3 Item Schematics ----------------- Mining Laser | -9/Materials | Scanalyzed Imp. Heat Sink | -9/Materials | Scanalyzed Structural Scanner | -9/Materials | Scanalyzed Hacking Suite | -8/Materials | Scanalyzed Datajack | -8/Materials | Scanalyzed Antigrav System | -7/Factory | Hacked Adv. Drone Bay | -7/Recycling | Hacked Coil Gun | -7/Recycling | Hacked Robot Schematics ------------------ W-25 Informer | -7/Storage | Hacked Fabricated ------------ Adv. Transmission Jammer | x1 | -7/Factory | Preloaded Antigrav System | x2 | -7/Factory Alien Tech Used ----------------- None Achievements -------------- A New Friend Achiever Assimilation Complete Prolific Hacker Universal Adapter \\IAMDERELICT Challenges ------------ None Game ------ Seed ComponentChipGravjet Manual? 0 Play Time 03:02:00 Cumulative 23.5 hours Start 2020.10.22 @ 07:52:57 End 2020.10.22 @ 10:56:50 Sessions 1 Manual Loads 0 Difficulty Explorer Special Mode None Game No. 19 Rogue 6 Adventurer 2 Explorer 11 Win Type - Total 0 Types 0/0/0/0/0/0/0/0/0 Lore% 16 Gallery% 30 Achievement% 26 Wizard Run 0 Options --------- ASCII 0 Keyboard 0 Movement Mouse Keybinds 0 Fullscreen 1 Font 18/SmallcapsGlow Map View 76x50 Tactical HUD 1 Map Filters NONE Filters NONE Steam 1 RUN: 371c5711-af18-4267-a080-1e8ebb30856b